fUST/lending_fUST_20251004
["ID","MTS","AMOUNT","RATE_DAILY","PERIOD"]
[389047592,1759570251323,-918.07,0.00022191,3]
[389047594,1759570251334,-1038.57,0.00022191,3]
[389047596,1759570251345,-1364.19,0.00022191,3]
[389047598,1759570251355,-624.87,0.00022191,3]
[389047600,1759570251366,-500.0,0.00022191,3]
[389047602,1759570251377,-500.0,0.00022191,3]
[389047604,1759570251389,-3119.67,0.00022191,3]
[389047607,1759570251399,-860.62546223,0.00022191,3]
[389047702,1759570252357,-450.20832156,0.00021917,2]
[389047704,1759570252367,-500.0,0.00021917,2]
[389047706,1759570252376,-510.48453777,0.00022191,3]
[389047708,1759570252385,-500.0,0.00022191,3]
[389047710,1759570252395,-500.0,0.00022191,3]
[389047711,1759570252404,-500.0,0.00022191,3]
[389047712,1759570252413,-500.0,0.00022191,3]
[389047713,1759570252422,-1780.78502029,0.00022191,3]
[389047729,1759570252877,-533.72,0.00021917,2]
[389047732,1759570252887,-500.0,0.00021917,2]
[389047734,1759570252897,-2618.42497971,0.00022191,3]
[389047736,1759570252906,-500.0,0.00022191,3]
[389047738,1759570252915,-1218.78,0.00022191,3]
[389047740,1759570252924,-500.0,0.00022191,3]
[389047741,1759570252934,-500.0,0.00022191,3]
[389047743,1759570252943,-3714.84,0.00022191,3]
[389047745,1759570252952,-500.0,0.00022191,3]
[389047747,1759570252961,-500.0,0.00022191,3]
[389047749,1759570252970,-219.792763,0.00022191,7]
[389047751,1759570252979,-1405.05,0.00022191,3]
[389047753,1759570252989,-219.792763,0.00022191,7]
[389047756,1759570252998,-500.0,0.00022191,3]
[389047757,1759570253007,-219.792763,0.00022191,7]
[389047759,1759570253016,-500.0,0.00022191,3]
[389047761,1759570253025,-219.792762,0.00022191,7]
[389047763,1759570253036,-500.0,0.00022191,3]
[389047765,1759570253046,-980.25,0.00022191,3]
[389047767,1759570253055,-500.0,0.00022191,3]
[389047769,1759570253064,-500.0,0.00022191,3]
[389047771,1759570253073,-500.0,0.00022191,3]
[389047773,1759570253082,-641.58,0.00022191,3]
[389047775,1759570253091,-1209.76142912,0.00022191,3]
[389047777,1759570253103,-317.04857088,0.00022191,3]
[389047779,1759570253112,-2000.15,0.00022191,3]
[389047781,1759570253120,-634.15,0.00022191,3]
[389047783,1759570253129,-500.0,0.00022191,3]
[389047784,1759570253138,-710.06,0.00022191,3]
[389047786,1759570253148,-629.0,0.00022191,3]
[389047788,1759570253157,-838.6,0.00022191,3]
[389047790,1759570253167,-740.98,0.00022191,3]
[389047792,1759570253177,-562.1,0.00022191,3]
[389047794,1759570253186,-500.0,0.00022191,3]
[389047796,1759570253195,-923.0,0.00022191,3]
[389047798,1759570253206,-500.0,0.00022191,3]
[389047800,1759570253215,-500.0,0.00022191,3]
[389047802,1759570253224,-500.0,0.00022191,3]
[389047804,1759570253233,-500.0,0.00022191,3]
[389047806,1759570253243,-500.0,0.00022191,3]
[389047808,1759570253252,-500.0,0.00022191,2]
[389047810,1759570253261,-500.0,0.00022191,3]
[389047812,1759570253270,-500.0,0.00022191,3]
[389047813,1759570253281,-500.0,0.00022191,3]
[389047815,1759570253291,-1246.25,0.00022191,3]
[389047817,1759570253300,-151.0,0.00022191,2]
[389047819,1759570253309,-4435.19,0.00022191,3]
[389047821,1759570253318,-500.0,0.00022191,3]
[389047823,1759570253328,-151.0,0.00022191,2]
[389047825,1759570253337,-500.0,0.00022191,2]
[389047827,1759570253346,-500.0,0.00022191,3]
[389047829,1759570253356,-500.0,0.00022191,3]
[389047831,1759570253365,-151.0,0.00022191,2]
[389047833,1759570253374,-500.0,0.00022191,3]
[389047835,1759570253383,-760.46328316,0.00022191,3]
[389047837,1759570253400,-500.0,0.00021917,2]
[389047839,1759570253409,-1016.57960273,0.00022191,3]
[389047841,1759570253420,-4256.41711411,0.00022191,3]
[389047843,1759570253430,-1133.65,0.00022191,3]
[389047845,1759570253440,-151.0,0.00022191,2]
[389047847,1759570253449,-500.0,0.00022191,3]
[389047849,1759570253459,-500.0,0.00022191,3]
[389047851,1759570253471,-151.0,0.00022191,2]
[389047853,1759570253480,-500.0,0.00022191,3]
[389047855,1759570253490,-485.67323554,0.00022191,3]
[389047895,1759570253886,-500.0,0.00021917,2]
[389047897,1759570253895,-652.86676446,0.00022191,3]
[389047899,1759570253904,-500.0,0.00022191,3]
[389047901,1759570253913,-500.0,0.00022191,3]
[389047903,1759570253922,-151.0,0.00022191,2]
[389047905,1759570253931,-151.0,0.00022191,2]
[389047907,1759570253940,-500.0,0.00022191,3]
[389047909,1759570253949,-500.0,0.00022191,3]
[389047911,1759570253958,-151.0,0.00022191,2]
[389047912,1759570253968,-526.17,0.00022191,3]
[389047914,1759570253978,-500.0,0.00022191,3]
[389047916,1759570253987,-500.0,0.00022191,3]
[389047918,1759570253997,-151.0,0.00022191,2]
[389047920,1759570254006,-151.0,0.00022191,2]
[389047922,1759570254015,-500.0,0.00022191,3]
[389047924,1759570254024,-1187.84780701,0.00022191,3]
[389048627,1759570263473,156.060269,0.00024208,30]
[389049322,1759570447302,204.009932,0.00016438,2]
[389049324,1759570865215,156.254511,0.00024963,30]
[389049426,1759571431932,-1014.21363404,0.00020911,2]
[389049428,1759571431944,-901.35642237,0.00020911,2]
[389049434,1759571431987,-450.51194209,0.00020911,2]
[389049436,1759571431997,-319.37,0.0002098,10]
[389049438,1759571432006,-130.27521321,0.0002098,10]
[389049440,1759571432017,-135.86478679,0.0002098,10]
[389049442,1759571432027,-270.0,0.00020986,2]
[389049444,1759571432036,-300.0,0.00020986,2]
[389049446,1759571432045,-252.26783461,0.00020987,2]
[389049448,1759571432056,-154.76377223,0.00020987,2]
[389049451,1759571432065,-500.0,0.00020987,2]
[389049453,1759571432074,-500.0,0.00020987,2]
[389049455,1759571432083,-195.248146,0.00020987,2]
[389049457,1759571432092,-266.86384211,0.00020987,2]
[389049458,1759571432101,-488.14843079,0.00020987,2]
[389049460,1759571432111,-500.0,0.00020987,2]
[389049462,1759571432120,-388.25797007,0.00020987,2]
[389049464,1759571432128,-715.32635988,0.00020988,2]
[389049526,1759571437795,-221.78,0.0002098,10]
[389049528,1759571437804,-307.60049847,0.00020988,2]
[389049530,1759571437816,-7363.45359356,0.00020988,2]
[389049532,1759571437828,-18228.74213795,0.00020988,2]
[389049744,1759571439887,-528.89051107,0.00020988,2]
[389049746,1759571439900,-2776.62570235,0.00020988,2]
[389049752,1759571439945,-12941.52094598,0.00020988,2]
[389049754,1759571439955,-212.4218548,0.00020989,2]
[389049756,1759571439965,-55537.02748469,0.0002099,2]
[389049759,1759571439977,-1156.62060131,0.0002099,2]
[389050034,1759571442875,-184.82,0.0002098,10]
[389050036,1759571442886,-2166.18,0.0002099,2]
[389050052,1759571443034,-1922.11785405,0.0002099,2]
[389050054,1759571443044,-283.77686453,0.00021525,2]
[389050056,1759571443054,-289.99300709,0.00021817,2]
[389050058,1759571443064,-1004.53,0.00021907,3]
[389050060,1759571443073,-837.1,0.00021907,3]
[389050062,1759571443084,-418.55,0.00021907,3]
[389050064,1759571443093,-209.28,0.00021907,3]
[389050066,1759571443102,-627.86,0.00021907,3]
[389050068,1759571443112,-155.0,0.00021916,2]
[389050070,1759571443121,-500.0,0.00021917,2]
[389050072,1759571443131,-500.0,0.00021917,2]
[389050074,1759571443140,-257.52196159,0.00021917,2]
[389050339,1759571445862,-222.47803841,0.00021917,2]
[389050341,1759571445871,-500.0,0.00021917,2]
[389050343,1759571445880,-134.00077328,0.00021917,2]
[389062501,1759572632148,-321.12475038,0.0001964,2]
[389062503,1759572632158,-493.40286222,0.00020355,2]
[389062505,1759572632169,-285.43575314,0.00020873,2]
[389062507,1759572632179,-289.99300708,0.00020887,2]
[389062509,1759572632190,-800.0,0.00020917,2]
[389062511,1759572632200,-300.0,0.00020971,2]
[389062514,1759572632211,-500.0,0.00020972,2]
[389062516,1759572632220,-500.0,0.00020972,2]
[389062518,1759572632230,-405.15674465,0.00020972,2]
[389062520,1759572632240,-500.0,0.00020972,2]
[389062522,1759572632250,-500.0,0.00020972,2]
[389062524,1759572632260,-500.0,0.00020972,2]
[389062526,1759572632270,-500.0,0.00020972,2]
[389062528,1759572632280,-500.0,0.00020972,2]
[389062531,1759572632290,-500.0,0.00020972,2]
[389062534,1759572632300,-500.0,0.00020972,2]
[389062537,1759572632310,-500.0,0.00020972,2]
[389062541,1759572632321,-500.0,0.00020972,2]
[389062544,1759572632332,-500.0,0.00020972,2]
[389062546,1759572632342,-500.0,0.00020972,2]
[389062548,1759572632352,-500.0,0.00020973,2]
[389062550,1759572632363,-501.14539818,0.00020973,2]
[389062553,1759572632373,-500.0,0.00020973,2]
[389062555,1759572632383,-500.0,0.00020973,2]
[389062557,1759572632393,-500.0,0.00020973,2]
[389062559,1759572632403,-500.0,0.00020973,2]
[389062561,1759572632414,-518.35789514,0.00020973,2]
[389062563,1759572632424,-510.12610584,0.00020973,2]
[389062565,1759572632438,-500.0,0.00020973,2]
[389062568,1759572632448,-35952.51256626,0.00020973,2]
[389062570,1759572632462,-611.0,0.00020973,2]
[389062673,1759572638157,-500.0,0.00020972,2]
[389062675,1759572638167,-9756.81231101,0.00020973,2]
[389062677,1759572638177,-500.0,0.00020973,2]
[389062679,1759572638186,-579.19987921,0.00020973,2]
[389062681,1759572638196,-500.0,0.00020973,2]
[389062683,1759572638205,-500.0,0.00020973,2]
[389062685,1759572638215,-500.0,0.00020973,2]
[389062687,1759572638225,-500.0,0.00020973,2]
[389062689,1759572638234,-476.57571514,0.00020973,2]
[389062691,1759572638243,-500.0,0.00020973,2]
[389062693,1759572638252,-500.0,0.00020973,2]
[389062695,1759572638262,-500.0,0.00020973,2]
[389062697,1759572638271,-500.0,0.00020973,2]
[389062699,1759572638280,-500.20600994,0.00020973,2]
[389062701,1759572638290,-452.65099278,0.00020973,2]
[389062704,1759572638299,-500.0,0.00020973,2]
[389062706,1759572638309,-500.0,0.00020973,2]
[389062708,1759572638318,-500.0,0.00020973,2]
[389062710,1759572638327,-500.0,0.00020973,2]
[389062712,1759572638337,-500.0,0.00020973,2]
[389062714,1759572638346,-500.0,0.00020973,2]
[389062716,1759572638355,-271.90358409,0.00020973,2]
[389062718,1759572638364,-500.01721038,0.00020973,2]
[389062720,1759572638374,-501.47726799,0.00020973,2]
[389062722,1759572638383,-500.36479836,0.00020973,2]
[389062724,1759572638392,-150.0,0.00020973,2]
[389062726,1759572638401,-500.0,0.00020973,2]
[389062728,1759572638411,-500.0,0.00020973,2]
[389062730,1759572638420,-500.0,0.00020975,2]
[389062731,1759572638429,-535.42,0.00020975,2]
[389062733,1759572638443,-500.0,0.00020975,2]
[389062735,1759572638453,-480.0,0.00020975,2]
[389062737,1759572638463,-500.0,0.00020975,2]
[389062740,1759572638475,-796.83,0.00020975,2]
[389062742,1759572638485,-500.0,0.00020975,2]
[389062744,1759572638495,-1360.05,0.00020975,2]
[389062746,1759572638505,-1346.5,0.00020975,2]
[389062748,1759572638514,-500.0,0.00020975,2]
[389062750,1759572638523,-791.47,0.00020975,2]
[389062752,1759572638532,-500.0,0.00020975,2]
[389062754,1759572638541,-5530.68,0.00020975,2]
[389062756,1759572638550,-500.0,0.00020975,2]
[389062758,1759572638558,-700.97,0.00020975,2]
[389062760,1759572638567,-500.0,0.00020975,2]
[389062761,1759572638576,-500.0,0.00020975,2]
[389062763,1759572638586,-500.0,0.00020975,2]
[389062765,1759572638595,-631.56,0.00020975,2]
[389062767,1759572638604,-5244.64,0.00020975,2]
[389062769,1759572638614,-1910.98,0.00020975,2]
[389062771,1759572638623,-488.31,0.00020976,3]
[389062773,1759572638632,-244.15,0.00020976,3]
[389062775,1759572638641,-732.48,0.00020976,3]
[389062777,1759572638651,-500.0,0.00020985,2]
[389062779,1759572638659,-500.0,0.00020985,2]
[389062782,1759572638670,-483.59085998,0.00020985,2]
[389062784,1759572638679,-400.5787892,0.00020985,2]
[389062785,1759572638688,-500.0,0.00020985,2]
[389062788,1759572638698,-515.87,0.00020985,2]
[389062790,1759572638707,-500.0,0.00020985,2]
[389062792,1759572638717,-500.0,0.00020985,2]
[389062794,1759572638727,-694.84,0.00020985,2]
[389062796,1759572638736,-500.0,0.00020985,2]
[389062798,1759572638746,-957.94,0.00020985,2]
[389062800,1759572638755,-500.0,0.00020985,2]
[389062802,1759572638764,-500.0,0.00020985,2]
[389062804,1759572638773,-500.0,0.00020985,2]
[389062806,1759572638784,-2332.25,0.00020985,2]
[389062808,1759572638794,-1833.47,0.00020985,2]
[389062810,1759572638803,-1270.8,0.00020985,2]
[389062812,1759572638814,-1525.79,0.00020985,2]
[389062814,1759572638824,-1426.79,0.00020985,2]
[389062816,1759572638833,-481.4305831,0.00020985,2]
[389062818,1759572638844,-619.94,0.00020985,2]
[389062820,1759572638855,-1687.91,0.00020985,2]
[389062822,1759572638865,-500.0,0.00020985,2]
[389062824,1759572638874,-3694.94,0.00020985,2]
[389062826,1759572638883,-500.0,0.00020985,2]
[389062828,1759572638893,-500.0,0.00020985,2]
[389062830,1759572638903,-680.47,0.00020985,2]
[389062832,1759572638912,-1080.89,0.00020985,2]
[389062834,1759572638922,-500.0,0.00020985,2]
[389062836,1759572638931,-1846.84,0.00020985,2]
[389062838,1759572638940,-1838.76,0.00020985,2]
[389062840,1759572638949,-1566.07,0.00020985,2]
[389062843,1759572638959,-3125.42,0.00020985,2]
[389062845,1759572638968,-500.0,0.00020985,2]
[389062847,1759572638978,-500.0,0.00020985,2]
[389062849,1759572638987,-1121.82,0.00020985,2]
[389062851,1759572638996,-2989.68,0.00020985,2]
[389062853,1759572639006,-728.49,0.00020985,2]
[389062855,1759572639015,-500.0,0.00020986,2]
[389062857,1759572639025,-500.0,0.00020986,2]
[389062859,1759572639034,-618.50616044,0.00020986,2]
[389062861,1759572639043,-505.12985618,0.00020986,2]
[389062863,1759572639052,-500.0,0.00020986,2]
[389062865,1759572639061,-500.0,0.00020986,2]
[389062867,1759572639070,-540.42,0.00020986,2]
[389062869,1759572639079,-646.97,0.00020986,2]
[389062871,1759572639089,-500.0,0.00020986,2]
[389062873,1759572639098,-488.50029924,0.00020986,2]
[389062875,1759572639107,-500.0,0.00020986,2]
[389062877,1759572639116,-500.0,0.00020986,2]
[389062879,1759572639126,-500.0,0.00020986,2]
[389062881,1759572639135,-821.59,0.00020986,2]
[389062883,1759572639144,-500.0,0.00020986,2]
[389062885,1759572639154,-362.32166968,0.00020986,2]
[389062887,1759572639164,-500.0,0.00020986,2]
[389062889,1759572639173,-500.0,0.00020986,2]
[389062891,1759572639183,-551.35914606,0.00020986,2]
[389062893,1759572639192,-500.0,0.00020986,2]
[389062895,1759572639202,-509.27,0.00020986,2]
[389062897,1759572639211,-500.0,0.00020986,2]
[389062899,1759572639220,-500.0,0.00020986,2]
[389062901,1759572639229,-500.0,0.00020986,2]
[389062903,1759572639239,-500.0,0.00020986,2]
[389062905,1759572639248,-500.0,0.00020986,2]
[389062907,1759572639257,-500.0,0.00020986,2]
[389062909,1759572639266,-500.0,0.00020986,2]
[389062911,1759572639275,-519.4,0.00020986,2]
[389062913,1759572639284,-538.37,0.00020986,2]
[389062915,1759572639294,-619.66,0.00020986,2]
[389062917,1759572639303,-500.0,0.00020986,2]
[389062919,1759572639312,-500.0,0.00020986,2]
[389062942,1759572639504,-500.0,0.00020986,2]
[389062944,1759572639514,-500.0,0.00020986,2]
[389062947,1759572639524,-481.01183531,0.00020986,2]
[389062949,1759572639533,-500.0,0.00020986,2]
[389062951,1759572639542,-646.46,0.00020986,2]
[389062953,1759572639552,-500.0,0.00020986,2]
[389062955,1759572639561,-874.99,0.00020986,2]
[389062957,1759572639570,-1109.66,0.00020986,2]
[389062959,1759572639580,-1821.63,0.00020986,2]
[389062961,1759572639589,-500.0,0.00020986,2]
[389062963,1759572639598,-500.0,0.00020986,2]
[389062965,1759572639608,-623.74,0.00020986,2]
[389062967,1759572639617,-606.03,0.00020986,2]
[389062969,1759572639627,-500.0,0.00020986,2]
[389062971,1759572639636,-500.0,0.00020986,2]
[389062973,1759572639645,-500.0,0.00020986,2]
[389062975,1759572639657,-800.02,0.00020986,2]
[389062977,1759572639667,-500.0,0.00020986,2]
[389062979,1759572639677,-500.0,0.00020986,2]
[389062982,1759572639686,-470.21158696,0.00020986,2]
[389062985,1759572639696,-500.0,0.00020986,2]
[389062987,1759572639706,-406.22132863,0.00020986,2]
[389062989,1759572639715,-500.0,0.00020986,2]
[389062992,1759572639725,-526.42,0.00020986,2]
[389062994,1759572639735,-500.0,0.00020986,2]
[389062996,1759572639744,-500.0,0.00020986,2]
[389062998,1759572639753,-500.0,0.00020986,2]
[389063000,1759572639763,-500.0,0.00020986,2]
[389063002,1759572639773,-500.0,0.00020986,2]
[389063004,1759572639783,-500.0,0.00020986,2]
[389063006,1759572639793,-382.16840639,0.00020986,2]
[389063008,1759572639802,-500.0,0.00020986,2]
[389063010,1759572639812,-500.0,0.00020986,2]
[389063012,1759572639821,-500.0,0.00020986,2]
[389063014,1759572639831,-500.0,0.00020986,2]
[389063016,1759572639840,-500.0,0.00020986,2]
[389063018,1759572639849,-500.0,0.00020986,2]
[389063020,1759572639858,-500.0,0.00020986,2]
[389063022,1759572639868,-500.0,0.00020986,2]
[389063024,1759572639877,-895.68,0.00020986,2]
[389063026,1759572639887,-500.0,0.00020986,2]
[389063028,1759572639896,-500.0,0.00020986,2]
[389063030,1759572639905,-500.0,0.00020986,2]
[389063032,1759572639915,-1189.78,0.00020986,2]
[389063034,1759572639925,-500.0,0.00020986,2]
[389063036,1759572639935,-1694.24,0.00020986,2]
[389063039,1759572639944,-952.87,0.00020986,2]
[389063041,1759572639954,-500.0,0.00020986,2]
[389063042,1759572639963,-500.0,0.00020986,2]
[389063044,1759572639972,-1554.82,0.00020986,2]
[389063047,1759572639982,-700.01,0.00020986,2]
[389063049,1759572639991,-500.0,0.00020986,2]
[389063050,1759572640000,-500.0,0.00020986,2]
[389063052,1759572640010,-500.0,0.00020986,2]
[389063055,1759572640019,-500.0,0.00020986,2]
[389063057,1759572640028,-500.0,0.00020986,2]
[389063059,1759572640037,-500.0,0.00020986,2]
[389063061,1759572640047,-500.0,0.00020986,2]
[389063063,1759572640057,-500.0,0.00020986,2]
[389063065,1759572640066,-500.0,0.00020986,2]
[389063067,1759572640075,-500.0,0.00020986,2]
[389063069,1759572640085,-2092.52,0.00020986,2]
[389063071,1759572640094,-500.0,0.00020986,2]
[389063073,1759572640103,-874.21,0.00020986,2]
[389063075,1759572640111,-500.0,0.00020986,2]
[389063077,1759572640120,-500.0,0.00020986,2]
[389063079,1759572640129,-500.0,0.00020986,2]
[389063081,1759572640138,-500.0,0.00020986,2]
[389063083,1759572640147,-500.0,0.00020986,2]
[389063085,1759572640156,-500.0,0.00020986,2]
[389063087,1759572640166,-500.0,0.00020986,2]
[389063089,1759572640175,-500.0,0.00020986,2]
[389063091,1759572640184,-186.93841996,0.00020986,2]
[389063093,1759572640194,-500.0,0.00020986,2]
[389063095,1759572640203,-500.0,0.00020986,2]
[389063097,1759572640213,-500.0,0.00020986,2]
[389063099,1759572640222,-500.0,0.00020986,2]
[389063101,1759572640231,-500.0,0.00020986,2]
[389063103,1759572640240,-1112.19,0.00020986,2]
[389063105,1759572640250,-500.0,0.00020986,2]
[389063107,1759572640259,-500.0,0.00020986,2]
[389063109,1759572640267,-500.0,0.00020986,2]
[389063111,1759572640277,-757.49,0.00020986,2]
[389063113,1759572640286,-500.0,0.00020986,2]
[389063115,1759572640295,-581.82,0.00020986,2]
[389063117,1759572640304,-500.0,0.00020986,2]
[389063119,1759572640313,-500.0,0.00020986,2]
[389063121,1759572640321,-500.0,0.00020986,2]
[389063123,1759572640330,-500.0,0.00020986,2]
[389063125,1759572640339,-229.13571346,0.00020986,2]
[389063127,1759572640348,-500.0,0.00020986,2]
[389063129,1759572640357,-500.0,0.00020986,2]
[389063131,1759572640365,-597.25,0.00020986,2]
[389063133,1759572640375,-500.0,0.00020986,2]
[389063135,1759572640384,-500.0,0.00020986,2]
[389063137,1759572640393,-1494.25,0.00020986,2]
[389063139,1759572640402,-624.01,0.00020986,2]
[389063141,1759572640411,-609.85,0.00020986,2]
[389063143,1759572640420,-500.0,0.00020986,2]
[389063145,1759572640430,-500.0,0.00020986,2]
[389063147,1759572640443,-500.0,0.00020986,2]
[389063149,1759572640453,-500.0,0.00020986,2]
[389063151,1759572640463,-500.0,0.00020986,2]
[389063153,1759572640472,-500.0,0.00020986,2]
[389063156,1759572640483,-500.0,0.00020986,2]
[389063158,1759572640492,-500.0,0.00020986,2]
[389063160,1759572640502,-500.0,0.00020986,2]
[389063162,1759572640512,-715.62,0.00020986,2]
[389063164,1759572640521,-500.0,0.00020986,2]
[389063166,1759572640531,-500.0,0.00020986,2]
[389063168,1759572640541,-500.0,0.00020986,2]
[389063170,1759572640550,-958.93,0.00020986,2]
[389063172,1759572640559,-500.0,0.00020986,2]
[389063174,1759572640569,-500.0,0.00020986,2]
[389063176,1759572640578,-988.17,0.00020986,2]
[389063178,1759572640587,-500.0,0.00020986,2]
[389063179,1759572640596,-500.0,0.00020986,2]
[389063181,1759572640605,-384.98250051,0.00020986,2]
[389063183,1759572640614,-500.0,0.00020986,2]
[389063185,1759572640623,-1193.39,0.00020986,2]
[389063187,1759572640632,-879.82,0.00020986,2]
[389063189,1759572640641,-862.62,0.00020986,2]
[389063191,1759572640651,-500.0,0.00020986,2]
[389063193,1759572640659,-500.0,0.00020986,2]
[389063195,1759572640669,-1185.86,0.00020986,2]
[389063197,1759572640678,-570.58955426,0.00020986,2]
[389063199,1759572640688,-500.0,0.00020986,2]
[389063201,1759572640697,-922.25,0.00020986,2]
[389063204,1759572640706,-500.0,0.00020986,2]
[389063206,1759572640715,-500.0,0.00020986,2]
[389063208,1759572640724,-500.0,0.00020986,2]
[389063210,1759572640733,-1161.94,0.00020986,2]
[389063211,1759572640742,-385.68224796,0.00020986,2]
[389063214,1759572640751,-1552.6,0.00020986,2]
[389063215,1759572640760,-518.45,0.00020986,2]
[389063218,1759572640770,-500.0,0.00020986,2]
[389063220,1759572640779,-500.0,0.00020986,2]
[389063221,1759572640788,-500.0,0.00020986,2]
[389063223,1759572640797,-500.0,0.00020986,2]
[389063226,1759572640807,-1096.18,0.00020986,2]
[389063227,1759572640816,-630.3,0.00020986,2]
[389063229,1759572640825,-500.0,0.00020986,2]
[389063231,1759572640835,-500.0,0.00020986,2]
[389063233,1759572640844,-500.0,0.00020986,2]
[389063235,1759572640853,-500.0,0.00020986,2]
[389063237,1759572640862,-500.0,0.00020986,2]
[389063239,1759572640871,-500.0,0.00020986,2]
[389063241,1759572640880,-500.0,0.00020986,2]
[389063243,1759572640889,-500.0,0.00020986,2]
[389063245,1759572640897,-2480.78,0.00020986,2]
[389063247,1759572640906,-1129.68,0.00020986,2]
[389063249,1759572640916,-500.0,0.00020986,2]
[389063251,1759572640925,-500.0,0.00020986,2]
[389063253,1759572640934,-500.0,0.00020986,2]
[389063255,1759572640943,-413.52478563,0.00020986,2]
[389063257,1759572640953,-500.0,0.00020986,2]
[389063259,1759572640962,-1324.96,0.00020986,2]
[389063261,1759572640971,-500.0,0.00020986,2]
[389063262,1759572640980,-500.0,0.00020986,2]
[389063263,1759572640989,-500.0,0.00020986,2]
[389063264,1759572640998,-500.0,0.00020986,2]
[389063265,1759572641008,-500.0,0.00020986,2]
[389063266,1759572641017,-500.0,0.00020986,2]
[389063267,1759572641026,-766.92,0.00020986,2]
[389063268,1759572641036,-500.0,0.00020986,2]
[389063269,1759572641045,-1403.38,0.00020986,2]
[389063270,1759572641054,-1578.54,0.00020986,2]
[389063271,1759572641062,-500.0,0.00020986,2]
[389063272,1759572641071,-485.57645482,0.00020986,2]
[389063273,1759572641081,-500.0,0.00020986,2]
[389063274,1759572641089,-500.0,0.00020986,2]
[389063276,1759572641098,-500.0,0.00020986,2]
[389063278,1759572641107,-1256.28,0.00020986,2]
[389063280,1759572641116,-500.0,0.00020986,2]
[389063282,1759572641126,-500.0,0.00020986,2]
[389063284,1759572641135,-500.0,0.00020986,2]
[389063287,1759572641145,-500.0,0.00020986,2]
[389063289,1759572641153,-500.0,0.00020986,2]
[389063290,1759572641163,-500.0,0.00020986,2]
[389063291,1759572641172,-1292.34,0.00020986,2]
[389063292,1759572641181,-500.0,0.00020986,2]
[389063293,1759572641190,-500.0,0.00020986,2]
[389063294,1759572641199,-500.0,0.00020986,2]
[389063295,1759572641208,-500.0,0.00020986,2]
[389063296,1759572641218,-500.0,0.00020986,2]
[389063297,1759572641227,-873.84,0.00020986,2]
[389063298,1759572641237,-500.0,0.00020986,2]
[389063299,1759572641247,-912.46,0.00020986,2]
[389063301,1759572641256,-500.0,0.00020986,2]
[389063303,1759572641265,-6990.49,0.00020986,2]
[389063304,1759572641274,-500.0,0.00020986,2]
[389063306,1759572641283,-500.0,0.00020986,2]
[389063308,1759572641294,-500.0,0.00020986,2]
[389063310,1759572641304,-500.0,0.00020986,2]
[389063312,1759572641313,-500.0,0.00020986,2]
[389063315,1759572641323,-500.0,0.00020986,2]
[389063317,1759572641332,-500.0,0.00020986,2]
[389063319,1759572641342,-500.0,0.00020986,2]
[389063321,1759572641351,-500.0,0.00020986,2]
[389063323,1759572641360,-4032.61,0.00020986,2]
[389063325,1759572641371,-500.0,0.00020986,2]